Workbook

Sheet Welcome
C3: HSM Methodology for Ramp Terminals for Chapter 19
G6: Based on Build 06.10 from ISATe
B7: FOREWORD
B8: This software can be used to evaluate the relationship between various highway design configurations and the expected average crash frequency. The profession's understanding of the influence of geometric design and traffic control features on safety is an evolving process. As additional information becomes available, this software will be updated to include the latest findings.
B12: The "Introduction" worksheet provides useful information about this software. This information should be read prior to first use of the software. The Introduction worksheet can be selected from the tabs at the bottom of the screen. After reading the Introduction, the other worksheets can be used to evaluate a freeway facility.
B17: ACKNOWLEDGMENT OF SPONSORSHIP
B18: This work was sponsored by the American Association of State Highway and Transportation Officials (AASHTO), in cooperation with the Federal Highway Administration, and was conducted in the National Cooperative Highway Research Program (NCHRP), which is administered by the Transportation Research Board of the National Academies of Sciences, Medicine, and Engineering (NASEM).
B22: DISCLAIMER
B23: This material represents the computational engine implementation of the interchange methodologies developed for the second edition of the Highway Safety Manual (HSM).
B26: This computational engine is offered as is, without warranty or promise of support of any kind either expressed or implied. Under no circumstance will NASEM or the Transportation Research Board (TRB) be liable for any loss or damage caused by the installation or use of this product. NASEM, TRB, and the National Cooperative Highway Research Program (NCHRP) make no representation or warranty of any kind, expressed or implied, in fact or in law, including without limitations the warranty of merchantability or the warranty of fitness for a particular purpose, and shall not in any case be liable for any consequential or special damages.
B36: This spreadsheet was originally developed as part of NCHRP Project 17-45 and was later modified during NCHRP Project 17-68
B37: to implement strictly the HSM crash prediction methods for crossroad ramp terminals at interchanges, including crash prediction
B38: models for crossroad ramp terminals at single-point and tight diamond interchanges developed as part of NCHRP 17-68.
B39: The changes to this spreadsheet tool were made by Dan Cook and Darren Torbic at MRIGlobal during NCHRP Project 17-68.
C42: Dan Cook, P.E. | G42: Darren Torbic, Ph.D.
C43: MRIGlobal | G43: MRIGlobal
C44: 425 Volker Boulevard | G44: 2332 Raven Hollow Rd
C45: Kansas City, MO | G45: State College, PA
C46: 64110-2241 | G46: 16801
C48: Email: dcook@mriglobal.org | G48: Email: dtorbic@mriglobal.org
C49: Phone: 816-326-5127 | G49: Phone: 814-237-8831

Sheet Introduction
C3: INTRODUCTION
B6: PREFACE
B7: This software provides information about the relationship between geometric design features and safety. It is based on research that quantified the relationship between various design elements (e.g., lane width) or design components (e.g., left-turn bay) and average crash frequency. The information provided in this software is intended to help designers make informed judgments about the safety performance of design alternatives.
B12: This software does not define design controls and does not represent a design requirement. It is not a substitute for engineering judgment. Further, it does not represent a legal requirement for roadway design.
B15: As discussed in the Highway Safety Manual, analysts should be aware that variability in crash data is so large that crash counts averaged over only a few years may not reveal telling information about the true average crash frequency at a given site. This large variability, combined with the subtle influence that most geometric features have on safety, can make it difficult to observe the safety effect of a change in geometry in the year or two following the change. In many cases, the change must be implemented at many sites and monitored for several years before its true effect on safety can be detected using crash data.
B21: EVALUATION SCOPE
B22: This software can be used to evaluate the following interchange components:
B24: ● Crossroad ramp terminals.
B27: WORKSHEET SELECTION
B28: This software includes the following worksheets:
B30: ● Welcome | E30: Includes a foreword, acknowledgements, and disclaimer.
B31: ● Introduction | E31: Brief overview of this software.
B32: ● Main | E32: Input data to describe evaluation and start calculations.
B33: ● Input Ramp Terminals | E33: Input data describing crossroad ramp terminals.
B34: ● Output Summary | E34: Summary of analysis results.
B35: ● Output Ramp Terminals | E35: Detailed listing of analysis results for crossroad ramp terminals.
B36: ● Calibration Factors | E36: Calibration factors for predictive models and crash type distributions.
B38: >>> Always proceed to the Main worksheet to start the evaluation process. <<<
B40: USER'S GUIDE
B41: Each spreadsheet is designed in a consistent manner and their use is similar. The cells with a blue background are for user input. Most of the other cells are locked to prevent inadvertent changes to cell contents.
B45: Main Worksheet
D60: Place cursor over the red corner to obtain | I60: Drop-down list. Click on grey square
D61: a pop-up message with useful information. | I61: to show list. Click on input choice.
B63: General Information
B64: The analyst can enter any descriptive information about the location being analyzed. Use the blue cells to enter this data.
B66: Crash Data Description
B67: Indicate whether crash data will be input. If input, these data will provide a more reliable estimate of the expected crash frequency. The crash data can be provided for each site, or for the collective set of sites (i.e., for the entire project). Of these two options, providing crash data for each site will provide a more reliable estimate of the expected crash frequency.
B72: Study Period and Crash Period
B73: All evaluations must have a specified study period. This period represents the consecutive years for which an estimate of the crash frequency is desired. It can represent past years, the current year, or some future years.
B76: The Study Period is defined by the "First year of analysis" and the "Last year of analysis." Input data (i.e., geometric design and traffic data) will need to be provided to describe conditions during the study period.
B79: The Crash Period is optional. It is used if crash data are provided.
B81: The Crash Period is defined by the "First year of crash data" and the "Last year of crash data." Input data (i.e., geometric design and traffic data) will need to be provided to describe conditions during the crash period.
B84: Note that if crash data are provided, then input data are needed for BOTH the study period and the crash period. These periods may or may not represent the same time period. Typically, the crash period is for some number of past years and the study period is for some number of future years.
B88: Input Ramp Terminals Worksheet | I88: Click on a button to execute macro code.
J104: Drop-down list. Click on cell
J105: to show list. Click on input choice.
B107: Data entry in this worksheet should proceed from top to bottom. That is, it should proceed in the direction of increasing row number. Worksheet macro code monitors each input value and adjusts the color of the cells in the rows below (i.e., it identifies the appropriate input cells by changing their background color to blue and eliminates the unneeded input cells by changing their background color to white).
B112: Basic Intersection Data
B113: Enter a value, or make a selection in a drop-down list, for each input variable. Use the blue cells to enter this data. If the value entered is not within range, then a message is displayed indicating "Out of Range!". Re-enter a value that is within the indicated range.
B117: Alignment Data
B118: Data entry is the same as for Basic Intersection Data. If an input value suggests the need for additional input, then additional cells in the same column may be converted to blue and require an input value. Similarly, if an input value suggests that some input cells are not relevant, then these cells will be converted to white. Only data in blue cells will be used in the analysis. Data must be provided for all blue cells (unless stated otherwise).
B123: Traffic Data
B141: AADT volume must be provided for one year in either the crash period or study period. Desirably, AADT volume is provided for each year of interest. The cells associated with the crash period and the study period have a blue background.
B144: In the graphic above, the crash period is for years 2005 to 2007 and the study period is for years 2013 to 2015. If the AADT volume is unknown for one or more years, then the corresponding blue cell is left blank by the analyst. The missing AADT volumes are estimated using the rules described in Section C.5 in Part C of the Highway Safety Manual.
B148: Output Ramp Terminals Worksheet
B149: The output worksheet is divided into several sections. The first section lists the computed CMF values. The next section lists the estimated crash frequency, categorized by fatal-and-injury and property-damage-only crash severity categories. The next section lists the crash severity distribution. The next section lists some intermediate calculations and the last section lists the AADT values used in the calculations (including those values that were estimated because of missing AADT data).
B154: Crash Modification Factors
B175: This section summarizes the CMFs computed using the equations described in the Project 17-45 Final Report. Each CMF is associated with one geometric design or traffic control feature. Its value is 1.0 when the feature’s characteristics are the same as those used to define the base condition for the predictive model. The CMF value will be less than 1.0 if (1) the characteristics of associated feature are different from those of the base condition and (2) the sites that have this variation of the feature experience fewer crashes than otherwise similar sites but with feature characteristics consistent with base conditions. The Highway Safety Manual provides additional discussion of CMFs.
B182: Fatal-and-Injury Crash Frequency
B201: The expected average crash frequency for the ramp terminal equals the sum of the expected multiple-vehicle and single-vehicle crashes. It is an estimate of the long-run frequency of crashes for the terminal. The expected fatal-and-injury crash frequency and the expected property-damage-only crash frequency are separately computed and summarized in the output worksheet.
B206: Crash Severity Distribution
B222: This section provides the severity distribution of crashes for each ramp terminal. The distribution for all terminals combined is provided in the Output Summary worksheet.
B225: Calibration Factors
B226: Crash Frequency Models
B240: This section of the spreadsheet is intended for analysts that desire to adjust the predictive models to better match conditions in their jurisdiction. The calibration factors and default model coefficients provided (in yellow shaded cells) are representative of several states. The calibration factors should be used to calibrate the models to local conditions. Changes to the model coefficients should be made with care, and based on sound statistical modeling. Guidance for quantifying local calibration factors is provided in Appendix B to Part C in the 2014 Supplement to the Highway Safety Manual.
B246: Crash Distribution
B262: Default values are provided for the distribution of crashes by area type, crash type, and crash type category. The values shown are representative of roadways on the state highway system in several states. Other values can be used, if desired, to tailor the estimates to local conditions.
B267: RAMP TERMINALS
B268: Ramp Terminal Configurations
B358: Ramp Terminal Boundaries
B378: The graphic above illustrates two crossroad ramp terminals with the D4 configuration. Each terminal represents a separate site. The two terminals are shown in the context of a diamond interchange. The arrangement shown is intended to illustrate the ramp terminal boundaries used for safety evaluation–it is not necessarily typical ramp terminal geometry.
B382: The free-flow loop ramp associated with the four-quadrant parclos (i.e., the A4 and B4 configurations) is not considered to be part of the nearby ramp terminal. All subsequent discussions where “ramp AADT” is identified for these two configurations are referring to the AADT of the diagonal entrance ramp or the AADT of the diagonal exit ramp. With one exception, the loop ramp of the A4 and B4 configuration is not explicitly addressed by the ramp terminal models. The exception is the right-turn channelization that serves traffic entering the loop ramp at the A4 configuration. It can be part of the ramp terminal design and its associated crashes are addressed by the predictive models.
B389: Number of Lanes for Exit Ramps (nex)
B423: The number of lanes serving the exit ramp (nex) is based on the count of lanes taken at the last point where all exiting movements are joined (i.e., at the channelization gore point if right-turn channelization is provided). All lanes counted need to be fully developed for 100 ft or more upstream from the point at which their respective movement intersects with the crossroad. The lane (or lanes) associated with the loop exit ramp at a B4 terminal configuration are not included in this count. The graphic above illustrates the application of this guidance.
B429: Skew Angle
B448: Skew angle is measured for the exit ramp. At a B4 terminal configuration, the skew angle represents that for the diagonal exit ramp (not the loop exit ramp). Skew angle is the acute angle between the crossroad centerline and a line along the center an imaginary vehicle stopped at the end of the exit ramp (i.e., where it joins the crossroad). The vehicle is centered in the traveled way. If vehicles can exit the ramp as left- or right-turn movements, then use a left-turning vehicle as the vehicle of reference. The skew angle is 0.0 degrees if the two reference lines intersect at 90 degrees.
B454: Median Width and Turn Bay Width
B473: The crossroad median width at an intersection is measured between the near edges of the traveled way associated with the opposing through traffic streams. It includes the width of the left shoulder and any left-turn lanes that are present.
B476: The left-turn bay width is measured from the near edge of the traveled way of the adjacent through lane to the lane marking (or curb face) that delineates the median.

Sheet Main
B3: HSM Methodology for Chapter 19 | AC3: Freeway | AG3: Ramp | AK3: Ramp
B4: General Information | AC4: Segments | AG4: Segments | AK4: Terminals
B5: Project description: | D5: Sample Data | AA5: First year: | AC5: =MIN($D7, AC7) -> 2015 | AG5: =MIN($D7, AG7) -> 2015 | AK5: =MIN($D7, AK7) -> 2015
B6: Analyst: | D6: JAB | F6: Date: | G6: =NOW() -> 2021-04-15T15:15:07.830 | I6: Area type: | K6: Urban | AA6: Last year: | AC6: =MAX($D8,AC8) -> 2015 | AG6: =MAX($D8,AG8) -> 2015 | AK6: =MAX($D8,AK8) -> 2015
B7: First year of analysis: | D7: 2015 | AA7: First crash data year: | AC7: =AD7 -> 2015 | AD7: 2015 | AG7: =AH7 -> 2015 | AH7: 2015 | AK7: =AL7 -> 2015 | AL7: 2015
B8: Last year of analysis: | D8: 2015 | E8: =IF(D8<D7, "Note: must equal or exceed first year of analysis.", IF(D8-MIN(AC5,AG5,AK5)+1>24, "Note: last year must be less than or equal to "&TEXT(MIN(AC5,AG5,AK5)+24-1,"0"),".")) -> . | AA8: Last crash data year: | AC8: =MIN($D$8, AD8, AC7+4,YEAR(NOW())) -> 2015 | AD8: 2015 | AG8: =MIN($D$8, AH8, AG7+4,YEAR(NOW())) -> 2015 | AH8: 2015 | AK8: =MIN($D$8, AL8, AK7+4,YEAR(NOW())) -> 2015 | AL8: 2015
B9: Crash Data Description
AA10: Freeway Segments | AE10: Ramp Segments | AI10: Ramp Terminals
AA11: No crash data | AC11: Data for each individual segment | AE11: No crash data | AG11: Data for each individual segment | AI11: No crash data | AK11: No crash data
AA12: Data for all segments combined | AE12: Data for all segments combined | AI12: Data for all terminals combined
AA13: Data for each individual segment | AE13: Data for each individual segment | AI13: Data for each individual terminal
B14: Ramp terminals | G14: =IF(L15-I15>4, "Upper limit of 5 years of crash data.", ".") -> . | AB14: Data? | AC14: =IF(AC11=AA11, FALSE, TRUE) -> TRUE | AG14: =IF(AG11=AE11, FALSE, TRUE) -> TRUE | AK14: =IF(AK11=AI11, FALSE, TRUE) -> FALSE
G15: First year of crash data: | I15: 2015 | J15: Last year of crash data: | L15: 2016 | AB15: Project? | AC15: =IF(AC11=AA12,TRUE,FALSE) -> FALSE | AG15: =IF(AG11=AE12,TRUE,FALSE) -> FALSE | AK15: =IF(AK11=AI12,TRUE,FALSE) -> FALSE
B18: Program Control
B19: 1. Enter data in the Main and Input Ramp Terminals worksheets.
B20: 2. Click Perform Calculations button to start calculation process.
B24: 3. Review results in the Output Summary worksheet. Optionally, click the Print buttons to print the summary worksheets.
B25: 4. Optionally, detailed results can be reviewed in the Output Ramp Terminals worksheets.
B29: Warning Messages | D29: See note
H30: Ramp Terminals

Sheet Input Ramp Terminals
E3: Input Worksheet for Crossroad Ramp Terminals
G4: ="Terminal "& TEXT(INT((COLUMN()-5)/2),"0") -> Terminal 1 | I4: ="Terminal "& TEXT(INT((COLUMN()-5)/2),"0") -> Terminal 2 | K4: ="Terminal "& TEXT(INT((COLUMN()-5)/2),"0") -> Terminal 3 | M4: ="Terminal "& TEXT(INT((COLUMN()-5)/2),"0") -> Terminal 4 | O4: ="Terminal "& TEXT(INT((COLUMN()-5)/2),"0") -> Terminal 5 | Q4: ="Terminal "& TEXT(INT((COLUMN()-5)/2),"0") -> Terminal 6 | T4: =G4 -> Terminal 1 | V4: =I4 -> Terminal 2 | X4: =K4 -> Terminal 3 | Z4: =M4 -> Terminal 4 | AB4: =O4 -> Terminal 5 | AD4: =Q4 -> Terminal 6
G5: =IF(Main!$AK$14=TRUE, "Crash Period", "Study Period") -> Study Period | H5: =IF(Main!$AK$14=TRUE, "Study Period", "") ->  | I5: =G5 -> Study Period | K5: Study Period | M5: Study Period | O5: Study Period | Q5: Study Period | T5: =G5 -> Study Period | U5: =H5 ->  | V5: =I5 -> Study Period | W5: =J5 ->  | X5: =K5 -> Study Period | Y5: =L5 ->  | Z5: =M5 -> Study Period | AA5: =N5 ->  | AB5: =O5 -> Study Period | AC5: =P5 ->  | AD5: =Q5 -> Study Period | AE5: =R5 -> 
C6: (View results in Column T) | D6: (View results in Advisory Messages)
B7: Basic Intersection Data
B8: Ramp terminal configuration: | G8: TDI | H8: =G8 -> TDI | J8: =I8 -> 0 | L8: =K8 -> 0 | N8: =M8 -> 0 | P8: =O8 -> 0 | R8: =Q8 -> 0 | T8: SPUI | U8: SPUI
B9: Ramp terminal description: | G9: NB exit ramp at Main | I9: SB exit ramp at Main | L9: Alt 1 | T9: NB exit ramp at Main
B10: Ramp terminal traffic control type: | G10: Signal | H10: =G10 -> Signal | I10: One stop | J10: =I10 -> One stop | K10: One stop | L10: =K10 -> One stop | M10: All stop | N10: =M10 -> All stop | O10: One stop | P10: =O10 -> One stop | Q10: Signal | R10: =Q10 -> Signal | T10: Signal | U10: Signal
B11: Is a non-ramp public street leg present at the terminal (Ips)?: | G11: No | H11: =G11 -> No | J11: =I11 -> 0 | L11: =K11 -> 0 | N11: =M11 -> 0 | P11: =O11 -> 0 | Q11: No | R11: =Q11 -> No
B12: Alignment Data
B13: Exit ramp skew angle (Isk), degrees: | G13: 2 | H13: =G13 -> 2 | I13: 1 | J13: =I13 -> 1 | K13: 15 | L13: =K13 -> 15 | M13: 35 | N13: =M13 -> 35 | O13: 52 | P13: =O13 -> 52 | R13: =Q13 -> 0 | T13: 0 | U13: 0
B14: Distance to the next public street intersection on the outside crossroad leg (Lstr), mi: | G14: 0.02 | H14: =G14 -> 0.02 | I14: 0.13 | J14: =I14 -> 0.13 | K14: 0.57 | L14: =K14 -> 0.57 | M14: 0.55 | N14: =M14 -> 0.55 | O14: 0.12 | P14: =O14 -> 0.12 | Q14: 0.075 | R14: =Q14 -> 0.075 | T14: 0.01999999955 | U14: 0.01999999955
B15: Distance to the adjacent ramp terminal (Lrmp), mi: | G15: 0.12 | H15: =G15 -> 0.12 | I15: 0.15 | J15: =I15 -> 0.15 | K15: 0.15 | L15: =K15 -> 0.15 | M15: 0.085 | N15: =M15 -> 0.085 | O15: 0.16 | P15: =O15 -> 0.16 | Q15: 0.17 | R15: =Q15 -> 0.17 | T15: 0 | U15: 0.1199999973
B16: Traffic Control
B17: Left-Turn Operational Mode
B18: Crossroad | C18: Inside approach | D18: Protected-only mode (Ip,lt,in)?: | G18: Yes | H18: =G18 -> Yes | J18: =I18 -> 0 | L18: =K18 -> 0 | N18: =M18 -> 0 | P18: =O18 -> 0 | R18: =Q18 -> 0
C19: Outside approach | D19: Protected-only mode (Ip,lt,out)?: | H19: =G19 -> 0 | J19: =I19 -> 0 | L19: =K19 -> 0 | N19: =M19 -> 0 | P19: =O19 -> 0 | R19: =Q19 -> 0
B20: Right-Turn Control Type
B21: Ramp | C21: Exit ramp approach | D21: Right-turn control type: | G21: Signal | H21: =G21 -> Signal | I21: Stop | J21: =I21 -> Stop | K21: Stop | L21: =K21 -> Stop | M21: Stop | N21: =M21 -> Stop | O21: Stop | P21: =O21 -> Stop | Q21: Yield | R21: =Q21 -> Yield
B22: Cross Section Data
B23: Crossroad median width (Wm), ft: | G23: 12 | H23: =G23 -> 12 | I23: 15 | J23: =I23 -> 15 | K23: 16 | L23: =K23 -> 16 | M23: 0 | N23: =M23 -> 0 | O23: 12 | P23: =O23 -> 12 | Q23: 0 | R23: =Q23 -> 0 | T23: 0 | U23: 12
B24: Number of Lanes
B25: Crossroad | C25: Both approaches | D25: Lanes serving through vehicles (nth): | G25: 4 | H25: =G25 -> 4 | I25: 2 | J25: =I25 -> 2 | K25: 4 | L25: =K25 -> 4 | M25: 2 | N25: =M25 -> 2 | O25: 2 | P25: =O25 -> 2 | Q25: 5 | R25: =Q25 -> 5 | T25: 4 | U25: 4
C26: Inside approach | D26: Lanes serving through vehicles (nth,in): | G26: 2 | H26: =G26 -> 2 | J26: =I26 -> 0 | L26: =K26 -> 0 | N26: =M26 -> 0 | P26: =O26 -> 0 | Q26: 2 | R26: =Q26 -> 2 | T26: 0 | U26: 0
C27: Outside approach | D27: Lanes serving through vehicles (nth,out): | G27: =G25-G26 -> 2 | H27: =H25-H26 -> 2 | I27: =I25-I26 -> 2 | J27: 2 | K27: 4 | L27: 4 | M27: 2 | N27: 2 | O27: 2 | P27: 2 | Q27: 3 | R27: 3 | T27: 0 | U27: 0
B28: Ramp | C28: Exit ramp approach | D28: All lanes (nex): | G28: 3 | H28: =G28 -> 3 | I28: 1 | J28: =I28 -> 1 | K28: 1 | L28: =K28 -> 1 | M28: 1 | N28: =M28 -> 1 | O28: 1 | P28: =O28 -> 1 | Q28: 2 | R28: =Q28 -> 2 | T28: 0 | U28: 0
B29: Right-Turn Channelization | E29: see note:
B30: Crossroad | C30: Inside approach | D30: Channelization present (Ich,in)?: | H30: =G30 -> 0 | J30: =I30 -> 0 | L30: =K30 -> 0 | N30: =M30 -> 0 | P30: =O30 -> 0 | Q30: No | R30: =Q30 -> No
C31: Outside approach | D31: Channelization present (Ich,out)?: | G31: Yes | H31: =G31 -> Yes | J31: =I31 -> 0 | L31: =K31 -> 0 | N31: =M31 -> 0 | P31: =O31 -> 0 | Q31: No | R31: =Q31 -> No
B32: Ramp | C32: Exit ramp approach | D32: Channelization present (Ich,ex)?: | G32: No | H32: =G32 -> No | J32: =I32 -> 0 | L32: =K32 -> 0 | N32: =M32 -> 0 | P32: =O32 -> 0 | Q32: Yes | R32: =Q32 -> Yes
B33: Left-Turn Lane or Bay
B34: Crossroad | C34: Inside approach | D34: Lane or bay present (Ibay,lt,in)?: | G34: No | H34: =G34 -> No | J34: =I34 -> 0 | L34: =K34 -> 0 | N34: =M34 -> 0 | O34: Yes | P34: =O34 -> Yes | R34: =Q34 -> 0
D35: Width of lane or bay (Wb,in), ft: | G35: 10 | H35: =G35 -> 10 | J35: =I35 -> 0 | L35: =K35 -> 0 | N35: =M35 -> 0 | O35: 10 | P35: =O35 -> 10 | R35: =Q35 -> 0 | T35: 0 | U35: 0
C36: Outside approach | D36: Lane or bay present (Ibay,lt,out)?: | H36: =G36 -> 0 | I36: Yes | J36: =I36 -> Yes | L36: =K36 -> 0 | N36: =M36 -> 0 | P36: =O36 -> 0 | R36: =Q36 -> 0
D37: Width of lane or bay (Wb,out), ft: | H37: =G37 -> 0 | I37: 12 | J37: =I37 -> 12 | L37: =K37 -> 0 | N37: =M37 -> 0 | P37: =O37 -> 0 | R37: =Q37 -> 0 | T37: 0 | U37: 0
B38: Right-Turn Lane or Bay
B39: Crossroad | C39: Inside approach | D39: Lane or bay present (Ibay,rt,in)?: | H39: =G39 -> 0 | I39: Yes | J39: =I39 -> Yes | L39: =K39 -> 0 | N39: =M39 -> 0 | P39: =O39 -> 0 | Q39: Yes | R39: =Q39 -> Yes
C40: Outside approach | D40: Lane or bay present (Ibay,rt,out)?: | G40: Yes | H40: =G40 -> Yes | J40: =I40 -> 0 | L40: =K40 -> 0 | N40: =M40 -> 0 | O40: No | P40: =O40 -> No | Q40: Yes | R40: =Q40 -> Yes
B41: Access Data
B42: Number of driveways on the outside crossroad leg (ndw): | G42: 1 | H42: =G42 -> 1 | J42: =I42 -> 0 | L42: =K42 -> 0 | N42: =M42 -> 0 | P42: =O42 -> 0 | Q42: 3 | R42: =Q42 -> 3 | T42: 0 | U42: 0
B43: Number of public street approaches on the outside crossroad leg (nps); Number of exit ramps with free-flow right turns onto crossroad (SPUI Only): | G43: 0 | H43: =G43 -> 0 | I43: 1 | J43: =I43 -> 1 | K43: 0 | L43: =K43 -> 0 | M43: 0 | N43: =M43 -> 0 | O43: 0 | P43: =O43 -> 0 | Q43: 0 | R43: =Q43 -> 0 | T43: 0 | U43: 0
B44: Traffic Data | F44: Year
B45: Inside Crossroad Leg Data | F45: =Main!AK5 -> 2015 | G45: 31250 | I45: 6985 | M45: 3677 | O45: 8814 | Q45: 23500 | T45: 31250
B46: Average daily traffic (AADTin) by year, veh/d: | F46: =F45+1 -> 2016 | I46: 7000 | T46: 0
B47: (enter data only for those years for which | F47: =F46+1 -> 2017 | G47: 50000 | K47: 7142 | T47: 0
B48: it is available, leave other years blank) | F48: 2018 | T48: 0
F49: 2019 | T49: 0
F50: 2020 | T50: 0
F51: 2021 | T51: 0
F52: 2022 | T52: 0
F53: 2023 | T53: 0
F54: 2024 | G54: 52000 | T54: 0
F55: 2025 | T55: 0
F56: 2026 | T56: 0
F57: 2027 | T57: 0
F58: 2028 | T58: 0
F59: 2029 | T59: 0
F60: 2030 | T60: 0
F61: 2031 | T61: 0
F62: 2032 | T62: 0
F63: 2033 | T63: 0
F64: 2034 | T64: 0
F65: 2035 | T65: 0
F66: 2036 | T66: 0
F67: 2037 | T67: 0
F68: 2038 | T68: 0
B69: Outside Crossroad Leg Data | F69: =F45 -> 2015 | G69: 31250 | M69: 3677 | O69: 8814 | T69: 31250
B70: Average daily traffic (AADTout) by year, veh/d: | F70: =F69+1 -> 2016 | I70: 6985 | K70: 7142 | T70: 0
B71: (enter data only for those years for which | F71: =F70+1 -> 2017 | G71: 50000 | I71: 7000 | K71: 7142 | Q71: 23500 | T71: 0
B72: it is available, leave other years blank) | F72: 2018 | T72: 0
F73: 2019 | T73: 0
F74: 2020 | T74: 0
F75: 2021 | T75: 0
F76: 2022 | T76: 0
F77: 2023 | T77: 0
F78: 2024 | T78: 0
F79: 2025 | T79: 0
F80: 2026 | T80: 0
F81: 2027 | T81: 0
F82: 2028 | T82: 0
F83: 2029 | T83: 0
F84: 2030 | T84: 0
F85: 2031 | T85: 0
F86: 2032 | T86: 0
F87: 2033 | T87: 0
F88: 2034 | T88: 0
F89: 2035 | T89: 0
F90: 2036 | T90: 0
F91: 2037 | T91: 0
F92: 2038 | T92: 0
B93: Exit Ramp Data | F93: =F69 -> 2015 | G93: 10500 | I93: 806 | K93: 2580 | M93: 958 | O93: 1782 | T93: 10500
B94: Average daily traffic (AADTex) by year, veh/d: | F94: =F93+1 -> 2016 | K94: 2580 | Q94: 2550 | T94: 0
B95: (enter data only for those years for which | F95: =F94+1 -> 2017 | K95: 2580 | T95: 0
B96: it is available, leave other years blank) | F96: 2018 | T96: 0
F97: 2019 | T97: 0
B98: For a B4 terminal configuration, enter the AADT for the | F98: 2020 | T98: 0
B99: diagonal exit ramp (not the loop exit ramp). | F99: 2021 | T99: 0
F100: 2022 | T100: 0
B101: For a SPUI or TDI terminal configuration, enter AADT for both | F101: 2023 | T101: 0
B102: exit ramps combined | F102: 2024 | T102: 0
F103: 2025 | T103: 0
F104: 2026 | T104: 0
F105: 2027 | T105: 0
F106: 2028 | T106: 0
F107: 2029 | T107: 0
F108: 2030 | T108: 0
F109: 2031 | T109: 0
F110: 2032 | T110: 0
F111: 2033 | T111: 0
F112: 2034 | T112: 0
F113: 2035 | T113: 0
F114: 2036 | T114: 0
F115: 2037 | T115: 0
F116: 2038 | T116: 0
B117: Entrance Ramp Data | F117: =F93 -> 2015 | G117: 8200 | M117: 3437 | Q117: 5900 | T117: 8200
B118: Average daily traffic (AADTen) by year, veh/d: | F118: =F117+1 -> 2016 | I118: 4050 | O118: 4610 | T118: 0
B119: (enter data only for those years for which | F119: =F118+1 -> 2017 | G119: 7807 | T119: 0
B120: it is available, leave other years blank) | F120: 2018 | T120: 0
F121: 2019 | T121: 0
B122: For an A4 terminal configuration, enter the AADT for the | F122: 2020 | T122: 0
B123: diagonal entrance ramp (not the loop entrance ramp). | F123: 2021 | T123: 0
F124: 2022 | T124: 0
B125: For a SPUI or TDI terminal configuration, enter AADT for both | F125: 2023 | T125: 0
B126: entrance ramps combined | F126: 2024 | T126: 0
F127: 2025 | T127: 0
F128: 2026 | T128: 0
F129: 2027 | T129: 0
F130: 2028 | T130: 0
F131: 2029 | T131: 0
F132: 2030 | T132: 0
F133: 2031 | T133: 0
F134: 2032 | T134: 0
F135: 2033 | T135: 0
F136: 2034 | T136: 0
F137: 2035 | T137: 0
F138: 2036 | T138: 0
F139: 2037 | T139: 0
F140: 2038 | T140: 0
B141: Crash Data | E141: Year | F141: =IF(Main!$AK$15=TRUE, "Project Crashes", "") ->  | G141: Ramp Terminal Crashes -->
B142: Count of Fatal-and-Injury (FI) Crashes by Year
C143: (No,w,ac,at,fi) | E143: =Main!AK7 -> 2015 | F143: 15 | G143: 6 | I143: 0 | K143: 0 | M143: 0 | O143: 2 | Q143: 1 | T143: 6
E144: =E143+1 -> 2016 | F144: 17 | G144: 3 | I144: 1 | K144: 0 | M144: 0 | O144: 2 | Q144: 2 | T144: 3
E145: =E144+1 -> 2017 | F145: 16 | G145: 12 | I145: 1 | K145: 0 | M145: 0 | O145: 2 | Q145: 1 | T145: 0
E146: =E145+1 -> 2018 | T146: 0
E147: =E146+1 -> 2019 | T147: 0
B148: Count of Property-Damage-Only (PDO) Crashes by Year
C149: (No,w,ac,at,pdo) | E149: =E143 -> 2015 | F149: 14 | G149: 12 | I149: 0 | K149: 1 | M149: 0 | O149: 1 | Q149: 2 | T149: 12
E150: =E144 -> 2016 | F150: 15 | G150: 13 | I150: 1 | K150: 1 | M150: 0 | O150: 1 | Q150: 2 | T150: 13
E151: =E145 -> 2017 | F151: 13 | G151: 10 | I151: 0 | K151: 0 | M151: 0 | O151: 0 | Q151: 3 | T151: 0
E152: =E146 -> 2018 | T152: 0
E153: =E147 -> 2019 | T153: 0
B155: Advisory Messages
B156: Average daily traffic (AADTin) by year, veh/d: | K156: Need AADT
B157: Average daily traffic (AADTout) by year, veh/d: | Q157: Need AADT
B158: Average daily traffic (AADTen) by year, veh/d: | K158: Need AADT
B180: Variable Limits
B181: =B24 -> Number of Lanes
C182: =C25 -> Both approaches | G182: =IF(AND(Main!$K$6= "Urban", G$10="Signal"),6, 4) -> 6 | H182: =IF(AND(Main!$K$6= "Urban", H$10="Signal"),6, 4) -> 6 | I182: =IF(AND(Main!$K$6= "Urban", I$10="Signal"),6, 4) -> 4 | J182: =IF(AND(Main!$K$6= "Urban", J$10="Signal"),6, 4) -> 4 | K182: =IF(AND(Main!$K$6= "Urban", K$10="Signal"),6, 4) -> 4 | L182: =IF(AND(Main!$K$6= "Urban", L$10="Signal"),6, 4) -> 4 | M182: =IF(AND(Main!$K$6= "Urban", M$10="Signal"),6, 4) -> 4 | N182: =IF(AND(Main!$K$6= "Urban", N$10="Signal"),6, 4) -> 4 | O182: =IF(AND(Main!$K$6= "Urban", O$10="Signal"),6, 4) -> 4 | P182: =IF(AND(Main!$K$6= "Urban", P$10="Signal"),6, 4) -> 4 | Q182: =IF(AND(Main!$K$6= "Urban", Q$10="Signal"),6, 4) -> 6 | R182: =IF(AND(Main!$K$6= "Urban", R$10="Signal"),6, 4) -> 6
C183: =B28 -> Ramp | G183: =IF(G$10="Signal",4, 2) -> 4 | H183: 4 | I183: 2 | J183: 2 | K183: 2 | L183: 2 | M183: 2 | N183: 2 | O183: 2 | P183: 2 | Q183: 4 | R183: 4

Sheet Output Summary
B3: Output Summary | N3: Evaluation Site Summary
B4: General Information | N4: General Information
B5: Project description: | D5: =Main!D5 -> Sample Data | N5: Project description: | P5: =D5 -> Sample Data
B6: Analyst: | D6: =Main!D6 -> JAB | F6: Date: | G6: =Main!G6 -> 2021-04-15T15:15:07.830 | I6: Area type: | K6: =Main!K6 -> Urban | N6: Analyst: | P6: =D6 -> JAB | R6: Date: | S6: =G6 -> 2021-04-15T15:15:07.830 | U6: Area type: | W6: =K6 -> Urban
B7: First year of analysis: | D7: =Main!D7 -> 2015 | N7: First year of analysis: | P7: =D7 -> 2015
B8: Last year of analysis: | D8: =Main!D8 -> 2015 | N8: Last year of analysis: | P8: =D8 -> 2015
B9: Crash Data Description | N9: Site Description
B14: Ramp terminals | D14: Site crash data available? | H14: No | I14: First year of crash data:
D15: Project-level crash data available? | H15: No | I15: Last year of crash data:
B16: Estimated Crash Statistics
B17: Crashes for Entire Facility | G17: Total | H17: K | I17: A | J17: B | K17: C | L17: PDO
B18: Estimated number of crashes during Study Period, crashes: | G18: 13.50368309 | H18: 0.01142948121 | I18: 0.2323994488 | J18: 1.253433108 | K18: 2.312565088 | L18: 9.693856239
B19: Estimated average crash freq. during Study Period, crashes/yr: | G19: 13.50368309 | H19: 0.01142948121 | I19: 0.2323994488 | J19: 1.253433108 | K19: 2.312565088 | L19: 9.693856239
B20: Crashes by Facility Component | F20: Nbr. Sites | G20: Total | H20: K | I20: A | J20: B | K20: C | L20: PDO
B23: Crossroad ramp terminals, crashes: | F23: 1 | G23: 13.50368309 | H23: 0.01142948121 | I23: 0.2323994488 | J23: 1.253433108 | K23: 2.312565088 | L23: 9.693856239
B24: Crashes for Entire Facility by Year | F24: Year | G24: Total | H24: K | I24: A | J24: B | K24: C | L24: PDO
B25: Estimated number of crashes during | F25: =Main!D7 -> 2015 | G25: 13.50368309 | H25: 0.01142948121 | I25: 0.2323994488 | J25: 1.253433108 | K25: 2.312565088 | L25: 9.693856239
B26: the Study Period, crashes: | F26: =F25+1 -> 2016
F27: =F26+1 -> 2017
F28: 2018
F29: 2019
F30: 2020
F31: 2021
F32: 2022
F33: 2023
F34: 2024
F35: 2025
F36: 2026
F37: 2027
F38: 2028
F39: 2029
F40: 2030
F41: 2031
F42: 2032
F43: 2033
F44: 2034
F45: 2035
F46: 2036
F47: 2037
F48: 2038
B49: Distribution of Crashes for Entire Facility
B50: Crash Type | D50: Crash Type Category | G50: Estimated Number of Crashes During the Study Period
G51: Total | H51: K | I51: A | J51: B | K51: C | L51: PDO
B52: Multiple vehicle | D52: Head-on crashes: | G52: 0.0865675509 | H52: 0.0001142948167 | I52: 0.002323994646 | J52: 0.0125343306 | K52: 0.02312565036 | L52: 0.04846928269
D53: Right-angle crashes: | G53: 3.977916241 | H53: 0.004983253777 | I53: 0.1013261601 | J53: 0.5464968085 | K53: 1.00827837 | L53: 2.316831589
D54: Rear-end crashes: | G54: 7.30430603 | H54: 0.00507468963 | I54: 0.1031853557 | J54: 0.5565242767 | K54: 1.026778817 | L54: 5.612742901
D55: Sideswipe crashes: | G55: 1.308713317 | H55: 0.0003200254869 | I55: 0.006507184822 | J55: 0.03509612754 | K55: 0.06475181878 | L55: 1.202038169
D56: Other multiple-vehicle crashes: | G56: 0.1814319193 | H56: 0.0001371537801 | I56: 0.002788793528 | J56: 0.01504119672 | K56: 0.02775078081 | L56: 0.1357139945 | N56: Crossroad Ramp Terminals
D57: Total multiple-vehicle crashes: | G57: 12.8589344 | H57: 0.01062941831 | I57: 0.2161314934 | J57: 1.165692806 | K57: 2.15068531 | L57: 9.315794945 | N57: Number | O57: Config. | P57: Control | Q57: =IF(Main!$AK$14=TRUE, "Crash Period Description", "Study Period Description") -> Study Period Description | U57: =IF(Main!$AK$14=TRUE, "Study Period Description", "") -> 
B58: Single vehicle | D58: Crashes with animal: | G58: 0 | H58: 0 | I58: 0 | J58: 0 | K58: 0 | L58: 0
D59: Crashes with fixed object: | G59: 0.3597311676 | H59: 0.0001485832618 | I59: 0.00302119297 | J59: 0.01629463024 | K59: 0.03006334603 | L59: 0.3102034032 | N59: 1 | O59: ='Input Ramp Terminals'!$G$8 -> TDI | P59: ='Input Ramp Terminals'!$G$10 -> Signal | Q59: ='Input Ramp Terminals'!$G$9 -> NB exit ramp at Main | U59: =IF(Main!$AK$14=TRUE, 'Input Ramp Terminals'!$H$9, "") -> 
D60: Crashes with other object: | G60: 0.009693856351 | H60: 0 | I60: 0 | J60: 0 | K60: 0 | L60: 0.009693856351 | N60: =N59+1 -> 2 | O60: ='Input Ramp Terminals'!$I$8 -> 0 | P60: ='Input Ramp Terminals'!$I$10 -> One stop | Q60: ='Input Ramp Terminals'!$I$9 -> SB exit ramp at Main | U60: =IF(Main!$AK$14=TRUE, 'Input Ramp Terminals'!$J$9, "") -> 
D61: Crashes with parked vehicle: | G61: 0 | H61: 0 | I61: 0 | J61: 0 | K61: 0 | L61: 0 | N61: =N60+1 -> 3 | O61: ='Input Ramp Terminals'!$K$8 -> 0 | P61: ='Input Ramp Terminals'!$K$10 -> One stop | Q61: ='Input Ramp Terminals'!$K$9 -> 0 | U61: =IF(Main!$AK$14=TRUE, 'Input Ramp Terminals'!$L$9, "") -> 
D62: Other single-vehicle crashes | G62: 0.2753232718 | H62: 0.0006514804554 | I62: 0.01324676909 | J62: 0.07144568861 | K62: 0.1318162084 | L62: 0.05816313624 | N62: =N61+1 -> 4 | O62: ='Input Ramp Terminals'!$M$8 -> 0 | P62: ='Input Ramp Terminals'!$M$10 -> All stop | Q62: ='Input Ramp Terminals'!$M$9 -> 0 | U62: =IF(Main!$AK$14=TRUE, 'Input Ramp Terminals'!$N$9,"") -> 
D63: Total single-vehicle crashes: | G63: 0.6447483301 | H63: 0.0008000637172 | I63: 0.01626796275 | J63: 0.08774031699 | K63: 0.1618795544 | L63: 0.3780604005 | N63: =N62+1 -> 5 | O63: ='Input Ramp Terminals'!$O$8 -> 0 | P63: ='Input Ramp Terminals'!$O$10 -> One stop | Q63: ='Input Ramp Terminals'!$O$9 -> 0 | U63: =IF(Main!$AK$14=TRUE, 'Input Ramp Terminals'!$P$9, "") -> 
E64: Total crashes: | G64: 13.50368309 | H64: 0.01142948121 | I64: 0.2323994488 | J64: 1.253433108 | K64: 2.312565088 | L64: 9.693856239 | N64: =N63+1 -> 6 | O64: ='Input Ramp Terminals'!$Q$8 -> 0 | P64: ='Input Ramp Terminals'!$Q$10 -> Signal | Q64: ='Input Ramp Terminals'!$Q$9 -> 0 | U64: =IF(Main!$AK$14=TRUE, 'Input Ramp Terminals'!$R$9, "") -> 

Sheet Output Ramp Terminals
E3: Output Worksheet for Crossroad Ramp Terminals
B4: Signal = signalized intersection model | G4: ="Terminal "& TEXT(INT((COLUMN()-5)/2),"0") -> Terminal 1 | I4: ="Terminal "& TEXT(INT((COLUMN()-5)/2),"0") -> Terminal 2 | K4: ="Terminal "& TEXT(INT((COLUMN()-5)/2),"0") -> Terminal 3 | M4: ="Terminal "& TEXT(INT((COLUMN()-5)/2),"0") -> Terminal 4 | O4: ="Terminal "& TEXT(INT((COLUMN()-5)/2),"0") -> Terminal 5 | Q4: ="Terminal "& TEXT(INT((COLUMN()-5)/2),"0") -> Terminal 6
B5: Unsig = unsignalized intersection model | E5: Applicable Models | G5: =IF(Main!$AK$14=TRUE, "Crash Period", "Study Period") -> Study Period | H5: =IF(Main!$AK$14=TRUE, "Study Period", "") ->  | I5: =G5 -> Study Period | K5: Study Period | M5: Study Period | O5: Study Period | Q5: Study Period
B7: Crash Modification Factors
B8: Fatal-and-Injury Crash CMFs
B9: Non-ramp public street leg (CMF19,w,SG,at,fi): | E9: Signal
B10: Segment length (CMF14,w,x,at,fi): | E10: Signal | F10: Unsig
B11: Protected left-turn operation (CMF16,w,SG,at,fi): | E11: Signal
E12: Year: | F12: =Main!$AK$5 -> 2015
F13: =F12+1 -> 2016
F14: =F13+1 -> 2017
F15: 2018
F16: 2019
F17: 2020
F18: 2021
F19: 2022
F20: 2023
F21: 2024
F22: 2025
F23: 2026
F24: 2027
F25: 2028
F26: 2029
F27: 2030
F28: 2031
F29: 2032
F30: 2033
F31: 2034
F32: 2035
F33: 2036
F34: 2037
F35: 2038
B36: Channelized right turn on crossroad (CMF17,w,SG,at,fi): | E36: Signal
E37: Year: | F37: =Main!$AK$5 -> 2015
F38: =F37+1 -> 2016
F39: =F38+1 -> 2017
F40: 2018
F41: 2019
F42: 2020
F43: 2021
F44: 2022
F45: 2023
F46: 2024
F47: 2025
F48: 2026
F49: 2027
F50: 2028
F51: 2029
F52: 2030
F53: 2031
F54: 2032
F55: 2033
F56: 2034
F57: 2035
F58: 2036
F59: 2037
F60: 2038
B61: Channelized right turn on exit ramp (CMF18,w,SG,at,fi): | E61: Signal
E62: Year: | F62: =Main!$AK$5 -> 2015
F63: =F62+1 -> 2016
F64: =F63+1 -> 2017
F65: 2018
F66: 2019
F67: 2020
F68: 2021
F69: 2022
F70: 2023
F71: 2024
F72: 2025
F73: 2026
F74: 2027
F75: 2028
F76: 2029
F77: 2030
F78: 2031
F79: 2032
F80: 2033
F81: 2034
F82: 2035
F83: 2036
F84: 2037
F85: 2038
B86: Access point frequency (CMF13,w,x,at,fi): | E86: Signal | F86: Unsig
E87: Year: | F87: =Main!$AK$5 -> 2015
F88: =F87+1 -> 2016
F89: =F88+1 -> 2017
F90: 2018
F91: 2019
F92: 2020
F93: 2021
F94: 2022
F95: 2023
F96: 2024
F97: 2025
F98: 2026
F99: 2027
F100: 2028
F101: 2029
F102: 2030
F103: 2031
F104: 2032
F105: 2033
F106: 2034
F107: 2035
F108: 2036
F109: 2037
F110: 2038
B111: Crossroad left-turn lane (CMF11,w,x,at,fi): | E111: Signal | F111: Unsig
E112: Year: | F112: =Main!$AK$5 -> 2015
F113: =F112+1 -> 2016
F114: =F113+1 -> 2017
F115: 2018
F116: 2019
F117: 2020
F118: 2021
F119: 2022
F120: 2023
F121: 2024
F122: 2025
F123: 2026
F124: 2027
F125: 2028
F126: 2029
F127: 2030
F128: 2031
F129: 2032
F130: 2033
F131: 2034
F132: 2035
F133: 2036
F134: 2037
F135: 2038
B136: Crossroad right-turn lane (CMF12,w,x,at,fi): | E136: Signal | F136: Unsig
E137: Year: | F137: =Main!$AK$5 -> 2015
F138: =F137+1 -> 2016
F139: =F138+1 -> 2017
F140: 2018
F141: 2019
F142: 2020
F143: 2021
F144: 2022
F145: 2023
F146: 2024
F147: 2025
F148: 2026
F149: 2027
F150: 2028
F151: 2029
F152: 2030
F153: 2031
F154: 2032
F155: 2033
F156: 2034
F157: 2035
F158: 2036
F159: 2037
F160: 2038
B161: Median width (CMF15,w,x,at,fi): | E161: Signal | F161: Unsig
E162: Year: | F162: =Main!$AK$5 -> 2015
F163: =F162+1 -> 2016
F164: =F163+1 -> 2017
F165: 2018
F166: 2019
F167: 2020
F168: 2021
F169: 2022
F170: 2023
F171: 2024
F172: 2025
F173: 2026
F174: 2027
F175: 2028
F176: 2029
F177: 2030
F178: 2031
F179: 2032
F180: 2033
F181: 2034
F182: 2035
F183: 2036
F184: 2037
F185: 2038
B186: Exit ramp capacity (CMF10,w,x,at,fi): | E186: Signal | F186: Unsig
E187: Year: | F187: =Main!$AK$5 -> 2015
F188: =F187+1 -> 2016
F189: =F188+1 -> 2017
F190: 2018
F191: 2019
F192: 2020
F193: 2021
F194: 2022
F195: 2023
F196: 2024
F197: 2025
F198: 2026
F199: 2027
F200: 2028
F201: 2029
F202: 2030
F203: 2031
... 553 more rows

Sheet Calibration Factors
B3: Ramp Terminal Model Calibration Factors and Default Values
B4: Ramp Terminal Fatal-and-Injury Crash Frequency Models | H4: Model: exp(a + b ln[c AADTin/2 + c AADTout/2] + d ln[c AADTex + c AADTen])
B5: Area Type | D5: Terminal Config. | E5: Control Type | G5: Through Lanes | I5: a | J5: b | K5: c | L5: d | M5: Inverse Disp. (K) | N5: Calib. Factor (C)
B7: Rural | D7: D3ex | E7: One-way stop | H7: 2 | I7: =-3.223+0.324 -> -2.899 | J7: 0.582 | K7: 0.001 | L7: 0.899 | M7: 2.16 | N7: 1.1
H8: 3 | I8: =-3.223+0.324 -> -2.899 | J8: 0.582 | K8: 0.001 | L8: 0.899 | M8: 2.16 | N8: =N7 -> 1.1
H9: 4 | I9: =-3.223+0.324 -> -2.899 | J9: 0.582 | K9: 0.001 | L9: 0.899 | M9: 2.16 | N9: =N8 -> 1.1
E10: Signalized | H10: 2 | I10: =-1.672+0.16*H10 -> -1.352 | J10: 0.379 | K10: 0.001 | L10: 0.394 | M10: 8.72 | N10: 1.1
H11: 3 | I11: =-1.672+0.16*H11 -> -1.192 | J11: 0.379 | K11: 0.001 | L11: 0.394 | M11: 8.72 | N11: =N10 -> 1.1
H12: 4 | I12: =-1.672+0.16*H12 -> -1.032 | J12: 0.379 | K12: 0.001 | L12: 0.394 | M12: 8.72 | N12: =N11 -> 1.1
D13: D3en | E13: One-way stop | H13: 2 | I13: =-3.141+0.324 -> -2.817 | J13: 0.709 | K13: 0.001 | L13: 0.73 | M13: 0.918 | N13: =N7 -> 1.1
H14: 3 | I14: =-3.141+0.324 -> -2.817 | J14: 0.709 | K14: 0.001 | L14: 0.73 | M14: 0.918 | N14: =N8 -> 1.1
H15: 4 | I15: =-3.141+0.324 -> -2.817 | J15: 0.709 | K15: 0.001 | L15: 0.73 | M15: 0.918 | N15: 1.1
E16: Signalized | H16: 2 | I16: =-2.388+0.16*H16 -> -2.068 | J16: 0.265 | K16: 0.001 | L16: 0.905 | M16: 5.37 | N16: 1.1
H17: 3 | I17: =-2.388+0.16*H17 -> -1.908 | J17: 0.265 | K17: 0.001 | L17: 0.905 | M17: 5.37 | N17: 1.1
H18: 4 | I18: =-2.388+0.16*H18 -> -1.748 | J18: 0.265 | K18: 0.001 | L18: 0.905 | M18: 5.37 | N18: 1.1
D19: D4 | E19: One-way stop | H19: 2 | I19: =-3.064+0.324 -> -2.74 | J19: 1.008 | K19: 0.001 | L19: 0.177 | M19: 2.58 | N19: =N13 -> 1.1
H20: 3 | I20: =-3.064+0.324 -> -2.74 | J20: 1.008 | K20: 0.001 | L20: 0.177 | M20: 2.58 | N20: 1.1
H21: 4 | I21: =-3.064+0.324 -> -2.74 | J21: 1.008 | K21: 0.001 | L21: 0.177 | M21: 2.58 | N21: 1.1
E22: Signalized | H22: 2 | I22: =-2.975+0.16*H22 -> -2.655 | J22: 1.191 | K22: 0.001 | L22: 0.131 | M22: 11.5 | N22: 1.1
H23: 3 | I23: =-2.975+0.16*H23 -> -2.495 | J23: 1.191 | K23: 0.001 | L23: 0.131 | M23: 11.5 | N23: 1.1
H24: 4 | I24: =-2.975+0.16*H24 -> -2.335 | J24: 1.191 | K24: 0.001 | L24: 0.131 | M24: 11.5 | N24: 1.1
D25: A4 | E25: One-way stop | H25: 2 | I25: =-3.223+0.324 -> -2.899 | J25: 0.582 | K25: 0.001 | L25: 0.899 | M25: 2.16 | N25: =N19 -> 1.1
H26: 3 | I26: =-3.223+0.324 -> -2.899 | J26: 0.582 | K26: 0.001 | L26: 0.899 | M26: 2.16 | N26: 1.1
H27: 4 | I27: =-3.223+0.324 -> -2.899 | J27: 0.582 | K27: 0.001 | L27: 0.899 | M27: 2.16 | N27: 1.1
E28: Signalized | H28: 2 | I28: =-1.672+0.16*H28 -> -1.352 | J28: 0.379 | K28: 0.001 | L28: 0.394 | M28: 8.72 | N28: 1.1
H29: 3 | I29: =-1.672+0.16*H29 -> -1.192 | J29: 0.379 | K29: 0.001 | L29: 0.394 | M29: 8.72 | N29: 1.1
H30: 4 | I30: =-1.672+0.16*H30 -> -1.032 | J30: 0.379 | K30: 0.001 | L30: 0.394 | M30: 8.72 | N30: 1.1
D31: B4 | E31: One-way stop | H31: 2 | I31: =-3.141+0.324 -> -2.817 | J31: 0.709 | K31: 0.001 | L31: 0.73 | M31: 0.918 | N31: =N25 -> 1.1
H32: 3 | I32: =-3.141+0.324 -> -2.817 | J32: 0.709 | K32: 0.001 | L32: 0.73 | M32: 0.918 | N32: 1.1
H33: 4 | I33: =-3.141+0.324 -> -2.817 | J33: 0.709 | K33: 0.001 | L33: 0.73 | M33: 0.918 | N33: 1.1
E34: Signalized | H34: 2 | I34: =-2.388+0.16*H34 -> -2.068 | J34: 0.265 | K34: 0.001 | L34: 0.905 | M34: 5.37 | N34: 1.1
H35: 3 | I35: =-2.388+0.16*H35 -> -1.908 | J35: 0.265 | K35: 0.001 | L35: 0.905 | M35: 5.37 | N35: 1.1
H36: 4 | I36: =-2.388+0.16*H36 -> -1.748 | J36: 0.265 | K36: 0.001 | L36: 0.905 | M36: 5.37 | N36: 1.1
D37: A2 | E37: One-way stop | H37: 2 | I37: =-2.687+0.324 -> -2.363 | J37: 0.26 | K37: 0.001 | L37: 0.947 | M37: 3.4 | N37: =N31 -> 1.1
H38: 3 | I38: =-2.687+0.324 -> -2.363 | J38: 0.26 | K38: 0.001 | L38: 0.947 | M38: 3.4 | N38: 1.1
H39: 4 | I39: =-2.687+0.324 -> -2.363 | J39: 0.26 | K39: 0.001 | L39: 0.947 | M39: 3.4 | N39: 1.1
E40: Signalized | H40: 2 | I40: =-0.778+0.16*H40 -> -0.458 | J40: 0.325 | K40: 0.001 | L40: 0.212 | M40: 2.17 | N40: 1.1
H41: 3 | I41: =-0.778+0.16*H41 -> -0.298 | J41: 0.325 | K41: 0.001 | L41: 0.212 | M41: 2.17 | N41: 1.1
H42: 4 | I42: =-0.778+0.16*H42 -> -0.138 | J42: 0.325 | K42: 0.001 | L42: 0.212 | M42: 2.17 | N42: 1.1
D43: B2 | E43: One-way stop | H43: 2 | I43: =-2.687+0.324 -> -2.363 | J43: 0.26 | K43: 0.001 | L43: 0.947 | M43: 3.4 | N43: =N37 -> 1.1
H44: 3 | I44: =-2.687+0.324 -> -2.363 | J44: 0.26 | K44: 0.001 | L44: 0.947 | M44: 3.4 | N44: 1.1
H45: 4 | I45: =-2.687+0.324 -> -2.363 | J45: 0.26 | K45: 0.001 | L45: 0.947 | M45: 3.4 | N45: 1.1
E46: Signalized | H46: 2 | I46: =-0.778+0.16*H46 -> -0.458 | J46: 0.325 | K46: 0.001 | L46: 0.212 | M46: 2.17 | N46: 1.1
H47: 3 | I47: =-0.778+0.16*H47 -> -0.298 | J47: 0.325 | K47: 0.001 | L47: 0.212 | M47: 2.17 | N47: 1.1
H48: 4 | I48: =-0.778+0.16*H48 -> -0.138 | J48: 0.325 | K48: 0.001 | L48: 0.212 | M48: 2.17 | N48: 1.1
B49: Urban | D49: D3ex | E49: One-way stop | H49: 2 | I49: =-3.223+0 -> -3.223 | J49: 0.582 | K49: 0.001 | L49: 0.899 | M49: 2.16 | N49: =N7 -> 1.1
H50: 3 | I50: =-3.223+0 -> -3.223 | J50: 0.582 | K50: 0.001 | L50: 0.899 | M50: 2.16 | N50: =N49 -> 1.1
H51: 4 | I51: =-3.223+0 -> -3.223 | J51: 0.582 | K51: 0.001 | L51: 0.899 | M51: 2.16 | N51: 1.1
E52: Signalized | H52: 2 | I52: =-1.672+0.16*H52 -> -1.352 | J52: 0.379 | K52: 0.001 | L52: 0.394 | M52: 8.72 | N52: =N10 -> 1.1
H53: 3 | I53: =-1.672+0.16*H53 -> -1.192 | J53: 0.379 | K53: 0.001 | L53: 0.394 | M53: 8.72 | N53: 1.1
H54: 4 | I54: =-1.672+0.16*H54 -> -1.032 | J54: 0.379 | K54: 0.001 | L54: 0.394 | M54: 8.72 | N54: 1.1
H55: 5 | I55: =-1.672+0.16*H55 -> -0.872 | J55: 0.379 | K55: 0.001 | L55: 0.394 | M55: 8.72 | N55: 1.1
H56: 6 | I56: =-1.672+0.16*H56 -> -0.712 | J56: 0.379 | K56: 0.001 | L56: 0.394 | M56: 8.72 | N56: 1.1
D57: D3en | E57: One-way stop | H57: 2 | I57: =-3.141+0 -> -3.141 | J57: 0.709 | K57: 0.001 | L57: 0.73 | M57: 0.918 | N57: =N49 -> 1.1
H58: 3 | I58: =-3.141+0 -> -3.141 | J58: 0.709 | K58: 0.001 | L58: 0.73 | M58: 0.918 | N58: =N50 -> 1.1
H59: 4 | I59: =-3.141+0 -> -3.141 | J59: 0.709 | K59: 0.001 | L59: 0.73 | M59: 0.918 | N59: =N51 -> 1.1
E60: Signalized | H60: 2 | I60: =-2.388+0.16*H60 -> -2.068 | J60: 0.265 | K60: 0.001 | L60: 0.905 | M60: 5.37 | N60: =N52 -> 1.1
H61: 3 | I61: =-2.388+0.16*H61 -> -1.908 | J61: 0.265 | K61: 0.001 | L61: 0.905 | M61: 5.37 | N61: =N60 -> 1.1
H62: 4 | I62: =-2.388+0.16*H62 -> -1.748 | J62: 0.265 | K62: 0.001 | L62: 0.905 | M62: 5.37 | N62: =N61 -> 1.1
H63: 5 | I63: =-2.388+0.16*H63 -> -1.588 | J63: 0.265 | K63: 0.001 | L63: 0.905 | M63: 5.37 | N63: =N62 -> 1.1
H64: 6 | I64: =-2.388+0.16*H64 -> -1.428 | J64: 0.265 | K64: 0.001 | L64: 0.905 | M64: 5.37 | N64: =N63 -> 1.1
D65: D4 | E65: One-way stop | H65: 2 | I65: =-3.064+0 -> -3.064 | J65: 1.008 | K65: 0.001 | L65: 0.177 | M65: 2.58 | N65: =N57 -> 1.1
H66: 3 | I66: =-3.064+0 -> -3.064 | J66: 1.008 | K66: 0.001 | L66: 0.177 | M66: 2.58 | N66: =N58 -> 1.1
H67: 4 | I67: =-3.064+0 -> -3.064 | J67: 1.008 | K67: 0.001 | L67: 0.177 | M67: 2.58 | N67: =N59 -> 1.1
E68: Signalized | H68: 2 | I68: =-2.975+0.16*H68 -> -2.655 | J68: 1.191 | K68: 0.001 | L68: 0.131 | M68: 11.5 | N68: =N60 -> 1.1
H69: 3 | I69: =-2.975+0.16*H69 -> -2.495 | J69: 1.191 | K69: 0.001 | L69: 0.131 | M69: 11.5 | N69: =N68 -> 1.1
H70: 4 | I70: =-2.975+0.16*H70 -> -2.335 | J70: 1.191 | K70: 0.001 | L70: 0.131 | M70: 11.5 | N70: =N69 -> 1.1
H71: 5 | I71: =-2.975+0.16*H71 -> -2.175 | J71: 1.191 | K71: 0.001 | L71: 0.131 | M71: 11.5 | N71: =N70 -> 1.1
H72: 6 | I72: =-2.975+0.16*H72 -> -2.015 | J72: 1.191 | K72: 0.001 | L72: 0.131 | M72: 11.5 | N72: =N71 -> 1.1
D73: A4 | E73: One-way stop | H73: 2 | I73: =-3.223+0 -> -3.223 | J73: 0.582 | K73: 0.001 | L73: 0.899 | M73: 2.16 | N73: =N65 -> 1.1
H74: 3 | I74: =-3.223+0 -> -3.223 | J74: 0.582 | K74: 0.001 | L74: 0.899 | M74: 2.16 | N74: =N66 -> 1.1
H75: 4 | I75: =-3.223+0 -> -3.223 | J75: 0.582 | K75: 0.001 | L75: 0.899 | M75: 2.16 | N75: =N67 -> 1.1
E76: Signalized | H76: 2 | I76: =-1.672+0.16*H76 -> -1.352 | J76: 0.379 | K76: 0.001 | L76: 0.394 | M76: 8.72 | N76: =N68 -> 1.1
H77: 3 | I77: =-1.672+0.16*H77 -> -1.192 | J77: 0.379 | K77: 0.001 | L77: 0.394 | M77: 8.72 | N77: =N76 -> 1.1
H78: 4 | I78: =-1.672+0.16*H78 -> -1.032 | J78: 0.379 | K78: 0.001 | L78: 0.394 | M78: 8.72 | N78: =N77 -> 1.1
H79: 5 | I79: =-1.672+0.16*H79 -> -0.872 | J79: 0.379 | K79: 0.001 | L79: 0.394 | M79: 8.72 | N79: =N78 -> 1.1
H80: 6 | I80: =-1.672+0.16*H80 -> -0.712 | J80: 0.379 | K80: 0.001 | L80: 0.394 | M80: 8.72 | N80: =N79 -> 1.1
D81: B4 | E81: One-way stop | H81: 2 | I81: =-3.141+0 -> -3.141 | J81: 0.709 | K81: 0.001 | L81: 0.73 | M81: 0.918 | N81: =N73 -> 1.1
H82: 3 | I82: =-3.141+0 -> -3.141 | J82: 0.709 | K82: 0.001 | L82: 0.73 | M82: 0.918 | N82: =N74 -> 1.1
H83: 4 | I83: =-3.141+0 -> -3.141 | J83: 0.709 | K83: 0.001 | L83: 0.73 | M83: 0.918 | N83: =N75 -> 1.1
E84: Signalized | H84: 2 | I84: =-2.388+0.16*H84 -> -2.068 | J84: 0.265 | K84: 0.001 | L84: 0.905 | M84: 5.37 | N84: =N76 -> 1.1
H85: 3 | I85: =-2.388+0.16*H85 -> -1.908 | J85: 0.265 | K85: 0.001 | L85: 0.905 | M85: 5.37 | N85: =N84 -> 1.1
H86: 4 | I86: =-2.388+0.16*H86 -> -1.748 | J86: 0.265 | K86: 0.001 | L86: 0.905 | M86: 5.37 | N86: =N85 -> 1.1
H87: 5 | I87: =-2.388+0.16*H87 -> -1.588 | J87: 0.265 | K87: 0.001 | L87: 0.905 | M87: 5.37 | N87: =N86 -> 1.1
H88: 6 | I88: =-2.388+0.16*H88 -> -1.428 | J88: 0.265 | K88: 0.001 | L88: 0.905 | M88: 5.37 | N88: =N87 -> 1.1
D89: A2 | E89: One-way stop | H89: 2 | I89: =-2.687+0 -> -2.687 | J89: 0.26 | K89: 0.001 | L89: 0.947 | M89: 3.4 | N89: =N81 -> 1.1
H90: 3 | I90: =-2.687+0 -> -2.687 | J90: 0.26 | K90: 0.001 | L90: 0.947 | M90: 3.4 | N90: =N82 -> 1.1
H91: 4 | I91: =-2.687+0 -> -2.687 | J91: 0.26 | K91: 0.001 | L91: 0.947 | M91: 3.4 | N91: =N83 -> 1.1
E92: Signalized | H92: 2 | I92: =-0.778+0.16*H92 -> -0.458 | J92: 0.325 | K92: 0.001 | L92: 0.212 | M92: 2.17 | N92: =N84 -> 1.1
H93: 3 | I93: =-0.778+0.16*H93 -> -0.298 | J93: 0.325 | K93: 0.001 | L93: 0.212 | M93: 2.17 | N93: =N92 -> 1.1
H94: 4 | I94: =-0.778+0.16*H94 -> -0.138 | J94: 0.325 | K94: 0.001 | L94: 0.212 | M94: 2.17 | N94: =N93 -> 1.1
H95: 5 | I95: =-0.778+0.16*H95 -> 0.022 | J95: 0.325 | K95: 0.001 | L95: 0.212 | M95: 2.17 | N95: =N94 -> 1.1
H96: 6 | I96: =-0.778+0.16*H96 -> 0.182 | J96: 0.325 | K96: 0.001 | L96: 0.212 | M96: 2.17 | N96: =N95 -> 1.1
D97: B2 | E97: One-way stop | H97: 2 | I97: =-2.687+0 -> -2.687 | J97: 0.26 | K97: 0.001 | L97: 0.947 | M97: 3.4 | N97: =N89 -> 1.1
H98: 3 | I98: =-2.687+0 -> -2.687 | J98: 0.26 | K98: 0.001 | L98: 0.947 | M98: 3.4 | N98: =N90 -> 1.1
H99: 4 | I99: =-2.687+0 -> -2.687 | J99: 0.26 | K99: 0.001 | L99: 0.947 | M99: 3.4 | N99: =N91 -> 1.1
E100: Signalized | H100: 2 | I100: =-0.778+0.16*H100 -> -0.458 | J100: 0.325 | K100: 0.001 | L100: 0.212 | M100: 2.17 | N100: =N92 -> 1.1
H101: 3 | I101: =-0.778+0.16*H101 -> -0.298 | J101: 0.325 | K101: 0.001 | L101: 0.212 | M101: 2.17 | N101: =N100 -> 1.1
H102: 4 | I102: =-0.778+0.16*H102 -> -0.138 | J102: 0.325 | K102: 0.001 | L102: 0.212 | M102: 2.17 | N102: =N101 -> 1.1
H103: 5 | I103: =-0.778+0.16*H103 -> 0.022 | J103: 0.325 | K103: 0.001 | L103: 0.212 | M103: 2.17 | N103: =N102 -> 1.1
H104: 6 | I104: =-0.778+0.16*H104 -> 0.182 | J104: 0.325 | K104: 0.001 | L104: 0.212 | M104: 2.17 | N104: =N103 -> 1.1
D105: SPUI | E105: One-way stop | H105: 0 | I105: -16.71 | J105: 0.88 | K105: 0.88 | M105: 9.09 | N105: =N97 -> 1.1
H106: 1 | I106: -17.29 | J106: 0.88 | K106: 0.88 | M106: 9.09 | N106: =N98 -> 1.1
H107: 2 | I107: -17.87 | J107: 0.88 | K107: 0.88 | M107: 9.09 | N107: 1.1
E108: Signalized | H108: 0 | I108: -16.71 | J108: 0.88 | K108: 0.88 | M108: 9.09 | N108: =N100 -> 1.1
H109: 1 | I109: -17.29 | J109: 0.88 | K109: 0.88 | M109: 9.09 | N109: =N101 -> 1.1
H110: 2 | I110: -17.87 | J110: 0.88 | K110: 0.88 | M110: 9.09 | N110: 1.1
H111: 5 | I111: -16.71 | J111: 0.88 | K111: 0.88 | L111: -0.58 | M111: 9.09 | N111: 1.1
H112: 6 | I112: -16.71 | J112: 0.88 | K112: 0.88 | L112: -0.58 | M112: 9.09 | N112: 1.1
D113: TDI | E113: One-way stop | H113: 2 | I113: -11.9 | J113: 0.5 | K113: 0.81 | M113: 4.35 | N113: 1.1
H114: 3 | I114: -11.9 | J114: 0.5 | K114: 0.81 | M114: 4.35 | N114: 1.1
H115: 4 | I115: -11.9 | J115: 0.5 | K115: 0.81 | M115: 4.35 | N115: 1.1
E116: Signalized | H116: 2 | I116: -11.9 | J116: 0.5 | K116: 0.81 | M116: 4.35 | N116: 1.1
H117: 3 | I117: -11.9 | J117: 0.5 | K117: 0.81 | M117: 4.35 | N117: 1.1
H118: 4 | I118: -11.9 | J118: 0.5 | K118: 0.81 | M118: 4.35 | N118: 1.1
H119: 5 | I119: -11.9 | J119: 0.5 | K119: 0.81 | M119: 4.35 | N119: 1.1
H120: 6 | I120: -11.9 | J120: 0.5 | K120: 0.81 | M120: 4.35 | N120: 1.1
B121: Ramp Terminal Property-Damage-Only Crash Freq. Models | H121: Model: exp(a + b ln[c AADTin/2 + c AADTout/2] + d ln[c AADTex + c AADTen])
B122: Area Type | D122: Terminal Config. | E122: Control Type | G122: Through Lanes | I122: a | J122: b | K122: c | L122: d | M122: Inverse Disp. (K) | N122: Calib. Factor (C)
B124: Rural | D124: D3ex | E124: One-way stop | H124: 2 | I124: =-3.164+0.494 -> -2.67 | J124: 0.595 | K124: 0.001 | L124: 0.937 | M124: 6.57 | N124: 1.1
H125: 3 | I125: =-3.164+0.494 -> -2.67 | J125: 0.595 | K125: 0.001 | L125: 0.937 | M125: 6.57 | N125: =N124 -> 1.1
H126: 4 | I126: =-3.164+0.494 -> -2.67 | J126: 0.595 | K126: 0.001 | L126: 0.937 | M126: 6.57 | N126: =N125 -> 1.1
E127: Signalized | H127: 2 | I127: =-2.755+0.0879*H127+0.332 -> -2.2472 | J127: 0.797 | K127: 0.001 | L127: 0.384 | M127: 4.05 | N127: 1.1
H128: 3 | I128: =-2.755+0.0879*H128+0.332 -> -2.1593 | J128: 0.797 | K128: 0.001 | L128: 0.384 | M128: 4.05 | N128: =N127 -> 1.1
H129: 4 | I129: =-2.755+0.0879*H129+0.332 -> -2.0714 | J129: 0.797 | K129: 0.001 | L129: 0.384 | M129: 4.05 | N129: =N128 -> 1.1
D130: D3en | E130: One-way stop | H130: 2 | I130: =-2.961+0.603 -> -2.358 | J130: 0.885 | K130: 0.001 | L130: 0.35 | M130: 3.9 | N130: =N124 -> 1.1
H131: 3 | I131: =-2.961+0.603 -> -2.358 | J131: 0.885 | K131: 0.001 | L131: 0.35 | M131: 3.9 | N131: =N125 -> 1.1
H132: 4 | I132: =-2.961+0.603 -> -2.358 | J132: 0.885 | K132: 0.001 | L132: 0.35 | M132: 3.9 | N132: 1.1
E133: Signalized | H133: 2 | I133: =-3.543+0.0879*H133+0.436 -> -2.9312 | J133: 0.741 | K133: 0.001 | L133: 0.845 | M133: =1/0.269 -> 3.717472119 | N133: 1.1
H134: 3 | I134: =-3.543+0.0879*H134+0.436 -> -2.8433 | J134: 0.741 | K134: 0.001 | L134: 0.845 | M134: =1/0.269 -> 3.717472119 | N134: 1.1
H135: 4 | I135: =-3.543+0.0879*H135+0.436 -> -2.7554 | J135: 0.741 | K135: 0.001 | L135: 0.845 | M135: =1/0.269 -> 3.717472119 | N135: 1.1
D136: D4 | E136: One-way stop | H136: 2 | I136: =-2.953+0.521 -> -2.432 | J136: 0.845 | K136: 0.001 | L136: 0.476 | M136: 4.27 | N136: =N130 -> 1.1
H137: 3 | I137: =-2.953+0.521 -> -2.432 | J137: 0.845 | K137: 0.001 | L137: 0.476 | M137: 4.27 | N137: 1.1
H138: 4 | I138: =-2.953+0.521 -> -2.432 | J138: 0.845 | K138: 0.001 | L138: 0.476 | M138: 4.27 | N138: 1.1
E139: Signalized | H139: 2 | I139: =-3.058+0.0879*H139+0.634 -> -2.2482 | J139: 0.879 | K139: 0.001 | L139: 0.545 | M139: 7.21 | N139: 1.1
H140: 3 | I140: =-3.058+0.0879*H140+0.634 -> -2.1603 | J140: 0.879 | K140: 0.001 | L140: 0.545 | M140: 7.21 | N140: 1.1
H141: 4 | I141: =-3.058+0.0879*H141+0.634 -> -2.0724 | J141: 0.879 | K141: 0.001 | L141: 0.545 | M141: 7.21 | N141: 1.1
D142: A4 | E142: One-way stop | H142: 2 | I142: =-3.164+0.494 -> -2.67 | J142: 0.595 | K142: 0.001 | L142: 0.937 | M142: 6.57 | N142: =N136 -> 1.1
H143: 3 | I143: =-3.164+0.494 -> -2.67 | J143: 0.595 | K143: 0.001 | L143: 0.937 | M143: 6.57 | N143: 1.1
H144: 4 | I144: =-3.164+0.494 -> -2.67 | J144: 0.595 | K144: 0.001 | L144: 0.937 | M144: 6.57 | N144: 1.1
E145: Signalized | H145: 2 | I145: =-2.755+0.0879*H145+0.332 -> -2.2472 | J145: 0.797 | K145: 0.001 | L145: 0.384 | M145: 4.05 | N145: 1.1
H146: 3 | I146: =-2.755+0.0879*H146+0.332 -> -2.1593 | J146: 0.797 | K146: 0.001 | L146: 0.384 | M146: 4.05 | N146: 1.1
H147: 4 | I147: =-2.755+0.0879*H147+0.332 -> -2.0714 | J147: 0.797 | K147: 0.001 | L147: 0.384 | M147: 4.05 | N147: 1.1
D148: B4 | E148: One-way stop | H148: 2 | I148: =-2.961+0.603 -> -2.358 | J148: 0.885 | K148: 0.001 | L148: 0.35 | M148: 3.9 | N148: =N142 -> 1.1
H149: 3 | I149: =-2.961+0.603 -> -2.358 | J149: 0.885 | K149: 0.001 | L149: 0.35 | M149: 3.9 | N149: 1.1
H150: 4 | I150: =-2.961+0.603 -> -2.358 | J150: 0.885 | K150: 0.001 | L150: 0.35 | M150: 3.9 | N150: 1.1
E151: Signalized | H151: 2 | I151: =-3.543+0.0879*H151+0.436 -> -2.9312 | J151: 0.741 | K151: 0.001 | L151: 0.845 | M151: =1/0.269 -> 3.717472119 | N151: 1.1
H152: 3 | I152: =-3.543+0.0879*H152+0.436 -> -2.8433 | J152: 0.741 | K152: 0.001 | L152: 0.845 | M152: =1/0.269 -> 3.717472119 | N152: 1.1
H153: 4 | I153: =-3.543+0.0879*H153+0.436 -> -2.7554 | J153: 0.741 | K153: 0.001 | L153: 0.845 | M153: =1/0.269 -> 3.717472119 | N153: 1.1
D154: A2 | E154: One-way stop | H154: 2 | I154: =-3.595+0.54 -> -3.055 | J154: 0.773 | K154: 0.001 | L154: 0.878 | M154: 5.49 | N154: =N148 -> 1.1
H155: 3 | I155: =-3.595+0.54 -> -3.055 | J155: 0.773 | K155: 0.001 | L155: 0.878 | M155: 5.49 | N155: 1.1
H156: 4 | I156: =-3.595+0.54 -> -3.055 | J156: 0.773 | K156: 0.001 | L156: 0.878 | M156: 5.49 | N156: 1.1
E157: Signalized | H157: 2 | I157: =-2.309+0.0879*H157+0.596 -> -1.5372 | J157: 0.592 | K157: 0.001 | L157: 0.516 | M157: 4.27 | N157: 1.1
H158: 3 | I158: =-2.309+0.0879*H158+0.596 -> -1.4493 | J158: 0.592 | K158: 0.001 | L158: 0.516 | M158: 4.27 | N158: 1.1
H159: 4 | I159: =-2.309+0.0879*H159+0.596 -> -1.3614 | J159: 0.592 | K159: 0.001 | L159: 0.516 | M159: 4.27 | N159: 1.1
D160: B2 | E160: One-way stop | H160: 2 | I160: =-3.595+0.54 -> -3.055 | J160: 0.773 | K160: 0.001 | L160: 0.878 | M160: 5.49 | N160: =N154 -> 1.1
H161: 3 | I161: =-3.595+0.54 -> -3.055 | J161: 0.773 | K161: 0.001 | L161: 0.878 | M161: 5.49 | N161: 1.1
H162: 4 | I162: =-3.595+0.54 -> -3.055 | J162: 0.773 | K162: 0.001 | L162: 0.878 | M162: 5.49 | N162: 1.1
E163: Signalized | H163: 2 | I163: =-2.309+0.0879*H163+0.596 -> -1.5372 | J163: 0.592 | K163: 0.001 | L163: 0.516 | M163: 4.27 | N163: 1.1
H164: 3 | I164: =-2.309+0.0879*H164+0.596 -> -1.4493 | J164: 0.592 | K164: 0.001 | L164: 0.516 | M164: 4.27 | N164: 1.1
H165: 4 | I165: =-2.309+0.0879*H165+0.596 -> -1.3614 | J165: 0.592 | K165: 0.001 | L165: 0.516 | M165: 4.27 | N165: 1.1
B166: Urban | D166: D3ex | E166: One-way stop | H166: 2 | I166: =-3.164+0.494 -> -2.67 | J166: 0.595 | K166: 0.001 | L166: 0.937 | M166: 6.57 | N166: =N124 -> 1.1
H167: 3 | I167: =-3.164+0.494 -> -2.67 | J167: 0.595 | K167: 0.001 | L167: 0.937 | M167: 6.57 | N167: =N166 -> 1.1
H168: 4 | I168: =-3.164+0.494 -> -2.67 | J168: 0.595 | K168: 0.001 | L168: 0.937 | M168: 6.57 | N168: =N167 -> 1.1
E169: Signalized | H169: 2 | I169: =-2.755+0.0879*H169+0.332 -> -2.2472 | J169: 0.797 | K169: 0.001 | L169: 0.384 | M169: 4.05 | N169: =N127 -> 1.1
H170: 3 | I170: =-2.755+0.0879*H170+0.332 -> -2.1593 | J170: 0.797 | K170: 0.001 | L170: 0.384 | M170: 4.05 | N170: =N169 -> 1.1
H171: 4 | I171: =-2.755+0.0879*H171+0.332 -> -2.0714 | J171: 0.797 | K171: 0.001 | L171: 0.384 | M171: 4.05 | N171: =N170 -> 1.1
H172: 5 | I172: =-2.755+0.0879*H172+0.332 -> -1.9835 | J172: 0.797 | K172: 0.001 | L172: 0.384 | M172: 4.05 | N172: =N171 -> 1.1
H173: 6 | I173: =-2.755+0.0879*H173+0.332 -> -1.8956 | J173: 0.797 | K173: 0.001 | L173: 0.384 | M173: 4.05 | N173: =N172 -> 1.1
D174: D3en | E174: One-way stop | H174: 2 | I174: =-2.961+0.603 -> -2.358 | J174: 0.885 | K174: 0.001 | L174: 0.35 | M174: 3.9 | N174: =N166 -> 1.1
H175: 3 | I175: =-2.961+0.603 -> -2.358 | J175: 0.885 | K175: 0.001 | L175: 0.35 | M175: 3.9 | N175: =N167 -> 1.1
H176: 4 | I176: =-2.961+0.603 -> -2.358 | J176: 0.885 | K176: 0.001 | L176: 0.35 | M176: 3.9 | N176: =N168 -> 1.1
E177: Signalized | H177: 2 | I177: =-3.543+0.0879*H177+0.436 -> -2.9312 | J177: 0.741 | K177: 0.001 | L177: 0.845 | M177: =1/0.269 -> 3.717472119 | N177: =N169 -> 1.1
H178: 3 | I178: =-3.543+0.0879*H178+0.436 -> -2.8433 | J178: 0.741 | K178: 0.001 | L178: 0.845 | M178: =1/0.269 -> 3.717472119 | N178: =N177 -> 1.1
H179: 4 | I179: =-3.543+0.0879*H179+0.436 -> -2.7554 | J179: 0.741 | K179: 0.001 | L179: 0.845 | M179: =1/0.269 -> 3.717472119 | N179: =N178 -> 1.1
H180: 5 | I180: =-3.543+0.0879*H180+0.436 -> -2.6675 | J180: 0.741 | K180: 0.001 | L180: 0.845 | M180: =1/0.269 -> 3.717472119 | N180: =N179 -> 1.1
H181: 6 | I181: =-3.543+0.0879*H181+0.436 -> -2.5796 | J181: 0.741 | K181: 0.001 | L181: 0.845 | M181: =1/0.269 -> 3.717472119 | N181: =N180 -> 1.1
D182: D4 | E182: One-way stop | H182: 2 | I182: =-2.953+0.521 -> -2.432 | J182: 0.845 | K182: 0.001 | L182: 0.476 | M182: 4.27 | N182: =N174 -> 1.1
H183: 3 | I183: =-2.953+0.521 -> -2.432 | J183: 0.845 | K183: 0.001 | L183: 0.476 | M183: 4.27 | N183: =N175 -> 1.1
H184: 4 | I184: =-2.953+0.521 -> -2.432 | J184: 0.845 | K184: 0.001 | L184: 0.476 | M184: 4.27 | N184: =N176 -> 1.1
E185: Signalized | H185: 2 | I185: =-3.058+0.0879*H185+0.634 -> -2.2482 | J185: 0.879 | K185: 0.001 | L185: 0.545 | M185: 7.21 | N185: =N177 -> 1.1
H186: 3 | I186: =-3.058+0.0879*H186+0.634 -> -2.1603 | J186: 0.879 | K186: 0.001 | L186: 0.545 | M186: 7.21 | N186: =N185 -> 1.1
H187: 4 | I187: =-3.058+0.0879*H187+0.634 -> -2.0724 | J187: 0.879 | K187: 0.001 | L187: 0.545 | M187: 7.21 | N187: =N186 -> 1.1
H188: 5 | I188: =-3.058+0.0879*H188+0.634 -> -1.9845 | J188: 0.879 | K188: 0.001 | L188: 0.545 | M188: 7.21 | N188: =N187 -> 1.1
H189: 6 | I189: =-3.058+0.0879*H189+0.634 -> -1.8966 | J189: 0.879 | K189: 0.001 | L189: 0.545 | M189: 7.21 | N189: =N188 -> 1.1
D190: A4 | E190: One-way stop | H190: 2 | I190: =-3.164+0.494 -> -2.67 | J190: 0.595 | K190: 0.001 | L190: 0.937 | M190: 6.57 | N190: =N182 -> 1.1
H191: 3 | I191: =-3.164+0.494 -> -2.67 | J191: 0.595 | K191: 0.001 | L191: 0.937 | M191: 6.57 | N191: =N183 -> 1.1
H192: 4 | I192: =-3.164+0.494 -> -2.67 | J192: 0.595 | K192: 0.001 | L192: 0.937 | M192: 6.57 | N192: =N184 -> 1.1
E193: Signalized | H193: 2 | I193: =-2.755+0.0879*H193+0.332 -> -2.2472 | J193: 0.797 | K193: 0.001 | L193: 0.384 | M193: 4.05 | N193: =N185 -> 1.1
H194: 3 | I194: =-2.755+0.0879*H194+0.332 -> -2.1593 | J194: 0.797 | K194: 0.001 | L194: 0.384 | M194: 4.05 | N194: =N193 -> 1.1
H195: 4 | I195: =-2.755+0.0879*H195+0.332 -> -2.0714 | J195: 0.797 | K195: 0.001 | L195: 0.384 | M195: 4.05 | N195: =N194 -> 1.1
H196: 5 | I196: =-2.755+0.0879*H196+0.332 -> -1.9835 | J196: 0.797 | K196: 0.001 | L196: 0.384 | M196: 4.05 | N196: =N195 -> 1.1
H197: 6 | I197: =-2.755+0.0879*H197+0.332 -> -1.8956 | J197: 0.797 | K197: 0.001 | L197: 0.384 | M197: 4.05 | N197: =N196 -> 1.1
D198: B4 | E198: One-way stop | H198: 2 | I198: =-2.961+0.603 -> -2.358 | J198: 0.885 | K198: 0.001 | L198: 0.35 | M198: 3.9 | N198: =N190 -> 1.1
H199: 3 | I199: =-2.961+0.603 -> -2.358 | J199: 0.885 | K199: 0.001 | L199: 0.35 | M199: 3.9 | N199: =N191 -> 1.1
H200: 4 | I200: =-2.961+0.603 -> -2.358 | J200: 0.885 | K200: 0.001 | L200: 0.35 | M200: 3.9 | N200: =N192 -> 1.1
E201: Signalized | H201: 2 | I201: =-3.543+0.0879*H201+0.436 -> -2.9312 | J201: 0.741 | K201: 0.001 | L201: 0.845 | M201: =1/0.269 -> 3.717472119 | N201: =N193 -> 1.1
H202: 3 | I202: =-3.543+0.0879*H202+0.436 -> -2.8433 | J202: 0.741 | K202: 0.001 | L202: 0.845 | M202: =1/0.269 -> 3.717472119 | N202: =N201 -> 1.1
H203: 4 | I203: =-3.543+0.0879*H203+0.436 -> -2.7554 | J203: 0.741 | K203: 0.001 | L203: 0.845 | M203: =1/0.269 -> 3.717472119 | N203: =N202 -> 1.1
H204: 5 | I204: =-3.543+0.0879*H204+0.436 -> -2.6675 | J204: 0.741 | K204: 0.001 | L204: 0.845 | M204: =1/0.269 -> 3.717472119 | N204: =N203 -> 1.1
... 75 more rows

Sheet Temp
A1: 0 | B1: 0 | C1: 0 | D1: 0 | E1: 0 | F1: 0 | G1: 0 | H1: 0 | I1: 0 | J1: 0 | K1: 0 | L1: 0 | M1: 0 | N1: 0 | O1: 0 | P1: 0
